[Event "December 19 Late 2023"]
[Site "https://www.chess.com"]
[Date "2023.12.19"]
[Round "1"]
[White "Su, Dion"]
[Black "Guerra Tulcan, Lenin"]
[Result "1-0"]
[Board "88"]
[TimeControl "180+1"]
[WhiteFideId "2029731"]
[BlackFideId "3601382"]
[WhiteElo "2362"]
[BlackElo "2368"]
[WhiteTeam "USA"]
[BlackTeam "ECU"]
[WhiteClock "0:00:05"]
[BlackClock "0:00:11"]

1. e4 {[%clk 0:03:00]}  c5 {[%clk 0:02:59]} 2. Nf3 {[%clk 0:03:01]}  e6 {[%clk 0:02:57]} 3. d4 {[%clk 0:03:01]}  cxd4 {[%clk 0:02:56]} 4. Nxd4 {[%clk 0:03:02]}  Nc6 {[%clk 0:02:56]} 5. Nc3 {[%clk 0:03:02]}  Qc7 {[%clk 0:02:55]} 6. Ndb5 {[%clk 0:03:01]}  Qb8 {[%clk 0:02:51]} 7. g3 {[%clk 0:03:02]}  Nf6 {[%clk 0:02:50]} 8. Bg2 {[%clk 0:03:01]}  Be7 {[%clk 0:02:46]} 9. Bf4 {[%clk 0:02:56]}  e5 {[%clk 0:02:39]} 10. Bg5 {[%clk 0:02:56]}  a6 {[%clk 0:02:39]} 11. Bxf6 {[%clk 0:02:54]}  gxf6 {[%clk 0:02:34]} 12. Na3 {[%clk 0:02:49]}  b5 {[%clk 0:02:30]} 13. Nd5 {[%clk 0:02:49]}  d6 {[%clk 0:02:09]} 14. c3 {[%clk 0:02:47]}  Be6 {[%clk 0:02:09]} 15. O-O {[%clk 0:02:46]}  h5 {[%clk 0:01:40]} 16. h3 {[%clk 0:02:30]}  b4 {[%clk 0:01:18]} 17. Nc4 {[%clk 0:02:04]}  Kf8 {[%clk 0:00:53]} 18. f4 {[%clk 0:01:54]}  Qb5 {[%clk 0:00:46]} 19. Nc7 {[%clk 0:01:22]}  Qxc4 {[%clk 0:00:46]} 20. Nxa8 {[%clk 0:01:22]}  bxc3 {[%clk 0:00:43]} 21. Nc7 {[%clk 0:01:09]}  cxb2 {[%clk 0:00:38]} 22. Nxe6+ {[%clk 0:01:09]}  fxe6 {[%clk 0:00:31]} 23. Rb1 {[%clk 0:01:09]}  Rg8 {[%clk 0:00:19]} 24. Kh2 {[%clk 0:00:57]}  h4 {[%clk 0:00:18]} 25. g4 {[%clk 0:00:57]}  exf4 {[%clk 0:00:19]} 26. Rxf4 {[%clk 0:00:52]}  Ne5 {[%clk 0:00:17]} 27. Rxb2 {[%clk 0:00:45]}  Kf7 {[%clk 0:00:18]} 28. Rb7 {[%clk 0:00:28]}  Qc3 {[%clk 0:00:18]} 29. Qxd6 {[%clk 0:00:16]}  Qg3+ {[%clk 0:00:18]} 30. Kh1 {[%clk 0:00:16]}  Re8 {[%clk 0:00:13]} 31. g5 {[%clk 0:00:11]}  Qxg5 {[%clk 0:00:13]} 32. Rf1 {[%clk 0:00:10]}  Ng6 {[%clk 0:00:10]} 33. e5 {[%clk 0:00:09]}  Kg7 {[%clk 0:00:10]} 34. exf6+ {[%clk 0:00:08]}  Kh6 {[%clk 0:00:10]} 35. fxe7 {[%clk 0:00:08]}  Ne5 {[%clk 0:00:11]} 36. Qd5 {[%clk 0:00:07]}  Rg8 {[%clk 0:00:11]} 37. Qxe6+ {[%clk 0:00:07]}  Rg6 {[%clk 0:00:11]} 38. Qd5 {[%clk 0:00:06]}  Qg3 {[%clk 0:00:11]} 39. e8=Q {[%clk 0:00:05]}  Nf3 {[%clk 0:00:11]} 40. Qh8# {[%clk 0:00:05]} 1-0

[Event "December 19 Late 2023"]
[Site "https://www.chess.com"]
[Date "2023.12.19"]
[Round "1"]
[White "Fernandez Diaz, Cristian"]
[Black "Boyer, Mahel"]
[Result "1-0"]
[Board "90"]
[TimeControl "180+1"]
[WhiteFideId "22256687"]
[BlackFideId "45102422"]
[WhiteElo "2170"]
[BlackElo "2449"]
[WhiteTeam "ESP"]
[BlackTeam "FRA"]
[WhiteClock "0:00:11"]
[BlackClock "0:00:00"]

1. e4 {[%clk 0:02:55]}  Nc6 {[%clk 0:02:54]} 2. Nf3 {[%clk 0:02:54]}  d5 {[%clk 0:02:54]} 3. exd5 {[%clk 0:02:50]}  Qxd5 {[%clk 0:02:55]} 4. Nc3 {[%clk 0:02:51]}  Qh5 {[%clk 0:02:56]} 5. Nb5 {[%clk 0:02:44]}  Kd8 {[%clk 0:02:55]} 6. d4 {[%clk 0:02:41]}  Bg4 {[%clk 0:02:56]} 7. c4 {[%clk 0:02:34]}  e6 {[%clk 0:02:51]} 8. Be2 {[%clk 0:02:32]}  a6 {[%clk 0:02:43]} 9. Nc3 {[%clk 0:02:31]}  Nf6 {[%clk 0:02:40]} 10. Be3 {[%clk 0:02:28]}  Bd6 {[%clk 0:02:35]} 11. Qd2 {[%clk 0:02:24]}  Kc8 {[%clk 0:02:21]} 12. O-O-O {[%clk 0:02:18]}  Rd8 {[%clk 0:02:20]} 13. h3 {[%clk 0:02:14]}  Bxf3 {[%clk 0:02:20]} 14. Bxf3 {[%clk 0:02:15]}  Qa5 {[%clk 0:02:20]} 15. a3 {[%clk 0:02:06]}  Be7 {[%clk 0:02:02]} 16. Qc2 {[%clk 0:02:03]}  Rb8 {[%clk 0:01:43]} 17. Rhe1 {[%clk 0:01:48]}  Bf8 {[%clk 0:01:35]} 18. g4 {[%clk 0:01:36]}  h6 {[%clk 0:01:32]} 19. h4 {[%clk 0:01:31]}  g6 {[%clk 0:00:45]} 20. g5 {[%clk 0:01:24]}  hxg5 {[%clk 0:00:46]} 21. hxg5 {[%clk 0:01:25]}  Ne8 {[%clk 0:00:47]} 22. Bg2 {[%clk 0:01:11]}  Nd6 {[%clk 0:00:46]} 23. d5 {[%clk 0:01:07]}  Nxc4 {[%clk 0:00:19]} 24. dxc6 {[%clk 0:00:49]}  bxc6 {[%clk 0:00:12]} 25. Rxd8+ {[%clk 0:00:45]}  Kxd8 {[%clk 0:00:11]} 26. Qd3+ {[%clk 0:00:45]}  Nd6 {[%clk 0:00:12]} 27. Bxc6 {[%clk 0:00:36]}  Be7 {[%clk 0:00:12]} 28. Rh1 {[%clk 0:00:32]}  Kc8 {[%clk 0:00:05]} 29. Rh8+ {[%clk 0:00:30]}  Bd8 {[%clk 0:00:06]} 30. Qd4 {[%clk 0:00:23]}  Qb6 {[%clk 0:00:01]} 31. Rxd8+ {[%clk 0:00:23]}  Kxd8 {[%clk 0:00:02]} 32. Qf6+ {[%clk 0:00:24]}  Kc8 {[%clk 0:00:02]} 33. Bxb6 {[%clk 0:00:25]}  Rxb6 {[%clk 0:00:03]} 34. Ba4 {[%clk 0:00:24]}  Kb7 {[%clk 0:00:02]} 35. Qf3+ {[%clk 0:00:23]}  Kb8 {[%clk 0:00:02]} 36. Bc2 {[%clk 0:00:23]}  a5 {[%clk 0:00:02]} 37. b3 {[%clk 0:00:22]}  Ra6 {[%clk 0:00:02]} 38. a4 {[%clk 0:00:22]}  Rb6 {[%clk 0:00:02]} 39. Nb5 {[%clk 0:00:22]}  Nf5 {[%clk 0:00:01]} 40. Bxf5 {[%clk 0:00:21]}  exf5 {[%clk 0:00:02]} 41. Kb2 {[%clk 0:00:21]}  Re6 {[%clk 0:00:02]} 42. Nd4 {[%clk 0:00:21]}  Re4 {[%clk 0:00:02]} 43. Qd3 {[%clk 0:00:20]}  Rf4 {[%clk 0:00:02]} 44. f3 {[%clk 0:00:20]}  Rh4 {[%clk 0:00:02]} 45. Qb5+ {[%clk 0:00:20]}  Kc8 {[%clk 0:00:02]} 46. Qc6 {[%clk 0:00:20]}  Rxd4 {[%clk 0:00:02]} 47. Qf6 {[%clk 0:00:20]}  Rd7 {[%clk 0:00:02]} 48. Qh8+ {[%clk 0:00:20]}  Kb7 {[%clk 0:00:03]} 49. Qe5 {[%clk 0:00:20]}  c6 {[%clk 0:00:02]} 50. Qxa5 {[%clk 0:00:20]}  Rd4 {[%clk 0:00:02]} 51. Qc3 {[%clk 0:00:19]}  Rd5 {[%clk 0:00:02]} 52. b4 {[%clk 0:00:19]}  Kb6 {[%clk 0:00:02]} 53. Qf6 {[%clk 0:00:18]}  Rd7 {[%clk 0:00:02]} 54. b5 {[%clk 0:00:18]}  Rc7 {[%clk 0:00:02]} 55. Kb3 {[%clk 0:00:18]}  Kb7 {[%clk 0:00:02]} 56. Kb4 {[%clk 0:00:17]}  cxb5 {[%clk 0:00:01]} 57. axb5 {[%clk 0:00:18]}  Kb8 {[%clk 0:00:01]} 58. b6 {[%clk 0:00:17]}  Rc1 {[%clk 0:00:01]} 59. Qe5+ {[%clk 0:00:17]}  Kb7 {[%clk 0:00:00]} 60. Qe7+ {[%clk 0:00:11]} 1-0

[Event "December 19 Late 2023"]
[Site "https://www.chess.com"]
[Date "2023.12.19"]
[Round "1"]
[White "Zhu, Jiner"]
[Black "Gerbelli Neto, Eduardo"]
[Result "1-0"]
[Board "91"]
[TimeControl "180+1"]
[WhiteFideId "8608059"]
[BlackFideId "2103281"]
[WhiteElo "2384"]
[BlackElo "2178"]
[WhiteTeam "CHN"]
[BlackTeam "BRA"]
[WhiteClock "0:02:19"]
[BlackClock "0:00:10"]

1. c4 {[%clk 0:02:59]}  c5 {[%clk 0:02:59]} 2. Nc3 {[%clk 0:02:59]}  Nf6 {[%clk 0:03:00]} 3. Nf3 {[%clk 0:02:59]}  d5 {[%clk 0:03:00]} 4. cxd5 {[%clk 0:02:59]}  Nxd5 {[%clk 0:03:01]} 5. g3 {[%clk 0:02:58]}  Nc6 {[%clk 0:03:00]} 6. Bg2 {[%clk 0:02:59]}  Nc7 {[%clk 0:03:01]} 7. O-O {[%clk 0:02:59]}  e5 {[%clk 0:03:02]} 8. b3 {[%clk 0:02:59]}  Be7 {[%clk 0:03:02]} 9. Bb2 {[%clk 0:03:00]}  O-O {[%clk 0:03:02]} 10. Rc1 {[%clk 0:03:00]}  f6 {[%clk 0:03:02]} 11. d3 {[%clk 0:02:58]}  Be6 {[%clk 0:02:45]} 12. a3 {[%clk 0:02:56]}  a5 {[%clk 0:02:45]} 13. Na4 {[%clk 0:02:54]}  Na6 {[%clk 0:02:35]} 14. Nd2 {[%clk 0:02:52]}  Rc8 {[%clk 0:02:21]} 15. f4 {[%clk 0:02:40]}  b5 {[%clk 0:02:12]} 16. Nc3 {[%clk 0:02:38]}  exf4 {[%clk 0:01:56]} 17. gxf4 {[%clk 0:02:38]}  b4 {[%clk 0:01:55]} 18. axb4 {[%clk 0:02:37]}  Naxb4 {[%clk 0:01:48]} 19. Nc4 {[%clk 0:02:37]}  Nd4 {[%clk 0:01:22]} 20. Kh1 {[%clk 0:02:35]}  Nd5 {[%clk 0:01:14]} 21. e3 {[%clk 0:02:26]}  Nf5 {[%clk 0:00:56]} 22. Nxd5 {[%clk 0:02:25]}  Bxd5 {[%clk 0:00:55]} 23. Bxd5+ {[%clk 0:02:25]}  Qxd5+ {[%clk 0:00:53]} 24. e4 {[%clk 0:02:25]}  Qa8 {[%clk 0:00:47]} 25. Qg4 {[%clk 0:02:25]}  Nd4 {[%clk 0:00:44]} 26. Rg1 {[%clk 0:02:24]}  g6 {[%clk 0:00:27]} 27. Bxd4 {[%clk 0:02:19]}  cxd4 {[%clk 0:00:26]} 28. Qe6+ {[%clk 0:02:19]}  Rf7 {[%clk 0:00:10]} 29. Nb6 {[%clk 0:02:19]} 1-0

[Event "December 19 Late 2023"]
[Site "https://www.chess.com"]
[Date "2023.12.19"]
[Round "1"]
[White "Hoffmann, Asa"]
[Black "Goltsev, Dmitry"]
[Result "0-1"]
[Board "94"]
[TimeControl "180+1"]
[WhiteFideId "2001470"]
[BlackFideId "24176710"]
[WhiteElo "2117"]
[BlackElo "2370"]
[WhiteTeam "USA"]
[BlackTeam "RUS"]
[WhiteClock "0:00:33"]
[BlackClock "0:00:09"]

1. d4 {[%clk 0:02:54]}  e6 {[%clk 0:02:12]} 2. e4 {[%clk 0:02:53]}  d5 {[%clk 0:02:06]} 3. e5 {[%clk 0:02:53]}  c5 {[%clk 0:02:06]} 4. Nf3 {[%clk 0:02:53]}  Nc6 {[%clk 0:02:07]} 5. Bd3 {[%clk 0:02:52]}  cxd4 {[%clk 0:02:07]} 6. O-O {[%clk 0:02:51]}  Nge7 {[%clk 0:02:07]} 7. Bf4 {[%clk 0:02:50]}  Ng6 {[%clk 0:02:04]} 8. Bg3 {[%clk 0:02:50]}  a6 {[%clk 0:02:03]} 9. h4 {[%clk 0:02:48]}  Bc5 {[%clk 0:01:53]} 10. a3 {[%clk 0:02:47]}  b5 {[%clk 0:01:46]} 11. b4 {[%clk 0:02:46]}  Bb6 {[%clk 0:01:46]} 12. Nbd2 {[%clk 0:02:46]}  Bd7 {[%clk 0:01:31]} 13. Nb3 {[%clk 0:02:45]}  a5 {[%clk 0:01:29]} 14. Qd2 {[%clk 0:02:37]}  a4 {[%clk 0:01:11]} 15. Nc1 {[%clk 0:02:29]}  Nce7 {[%clk 0:00:58]} 16. h5 {[%clk 0:02:24]}  Nf8 {[%clk 0:00:56]} 17. Bh4 {[%clk 0:02:22]}  h6 {[%clk 0:00:51]} 18. Ne2 {[%clk 0:02:22]}  Qb8 {[%clk 0:00:46]} 19. Qf4 {[%clk 0:02:12]}  g5 {[%clk 0:00:30]} 20. Bxg5 {[%clk 0:01:59]}  hxg5 {[%clk 0:00:29]} 21. Nxg5 {[%clk 0:01:59]}  f5 {[%clk 0:00:29]} 22. exf6 {[%clk 0:01:55]}  Qxf4 {[%clk 0:00:28]} 23. Nxf4 {[%clk 0:01:54]}  Nc8 {[%clk 0:00:18]} 24. Bg6+ {[%clk 0:01:44]}  Nxg6 {[%clk 0:00:12]} 25. h6 {[%clk 0:01:43]}  Nxf4 {[%clk 0:00:11]} 26. h7 {[%clk 0:01:32]}  Nd6 {[%clk 0:00:09]} 27. Rfe1 {[%clk 0:01:30]}  O-O-O {[%clk 0:00:09]} 28. g3 {[%clk 0:01:28]}  Ng6 {[%clk 0:00:09]} 29. f4 {[%clk 0:01:25]}  Rdf8 {[%clk 0:00:08]} 30. Nxe6 {[%clk 0:01:24]}  Bxe6 {[%clk 0:00:08]} 31. Rxe6 {[%clk 0:01:23]}  Kd7 {[%clk 0:00:08]} 32. Rae1 {[%clk 0:01:22]}  d3+ {[%clk 0:00:09]} 33. Kg2 {[%clk 0:01:21]}  d2 {[%clk 0:00:10]} 34. Re7+ {[%clk 0:01:20]}  Nxe7 {[%clk 0:00:10]} 35. Rxe7+ {[%clk 0:00:33]}  Kc6 {[%clk 0:00:09]} 0-1

[Event "December 19 Late 2023"]
[Site "https://www.chess.com"]
[Date "2023.12.19"]
[Round "1"]
[White "Chlpik, Martin"]
[Black "Kucza, Karol"]
[Result "0-1"]
[Board "96"]
[TimeControl "180+1"]
[WhiteFideId "14923351"]
[BlackFideId "1159755"]
[WhiteElo "2109"]
[BlackElo "2307"]
[WhiteTeam "SVK"]
[BlackTeam "POL"]
[WhiteClock "0:00:29"]
[BlackClock "0:00:59"]

1. d4 {[%clk 0:01:44]}  d5 {[%clk 0:02:59]} 2. c4 {[%clk 0:01:44]}  e6 {[%clk 0:02:58]} 3. cxd5 {[%clk 0:01:45]}  exd5 {[%clk 0:02:58]} 4. Nc3 {[%clk 0:01:45]}  c6 {[%clk 0:02:58]} 5. Bf4 {[%clk 0:01:43]}  Nf6 {[%clk 0:02:58]} 6. e3 {[%clk 0:01:44]}  Bf5 {[%clk 0:02:57]} 7. Bd3 {[%clk 0:01:44]}  Bxd3 {[%clk 0:02:56]} 8. Qxd3 {[%clk 0:01:45]}  Bd6 {[%clk 0:02:56]} 9. Nf3 {[%clk 0:01:44]}  Bxf4 {[%clk 0:02:56]} 10. exf4 {[%clk 0:01:45]}  O-O {[%clk 0:02:56]} 11. O-O-O {[%clk 0:01:45]}  Re8 {[%clk 0:02:23]} 12. Rhe1 {[%clk 0:01:43]}  Nbd7 {[%clk 0:02:22]} 13. Kb1 {[%clk 0:01:44]}  a5 {[%clk 0:02:19]} 14. Ne5 {[%clk 0:01:43]}  Qc7 {[%clk 0:02:13]} 15. g4 {[%clk 0:01:43]}  a4 {[%clk 0:02:03]} 16. g5 {[%clk 0:01:40]}  Nxe5 {[%clk 0:02:00]} 17. fxe5 {[%clk 0:01:33]}  Nd7 {[%clk 0:02:00]} 18. g6 {[%clk 0:01:32]}  fxg6 {[%clk 0:01:57]} 19. h4 {[%clk 0:01:32]}  Nf8 {[%clk 0:01:57]} 20. h5 {[%clk 0:01:30]}  gxh5 {[%clk 0:01:56]} 21. Rh1 {[%clk 0:01:29]}  g6 {[%clk 0:01:57]} 22. f4 {[%clk 0:01:29]}  Qf7 {[%clk 0:01:55]} 23. Ne2 {[%clk 0:01:27]}  Ne6 {[%clk 0:01:39]} 24. Rdf1 {[%clk 0:01:23]}  Ng7 {[%clk 0:01:39]} 25. Ng3 {[%clk 0:01:21]}  Rf8 {[%clk 0:01:38]} 26. f5 {[%clk 0:01:13]}  gxf5 {[%clk 0:01:38]} 27. Ne2 {[%clk 0:01:11]}  f4 {[%clk 0:01:31]} 28. Rxf4 {[%clk 0:01:09]}  Qg6 {[%clk 0:01:31]} 29. Kc2 {[%clk 0:01:02]}  Ne6 {[%clk 0:01:16]} 30. Rff1 {[%clk 0:00:51]}  Kh8 {[%clk 0:01:09]} 31. Rfg1 {[%clk 0:00:41]}  Qxd3+ {[%clk 0:01:08]} 32. Kxd3 {[%clk 0:00:42]}  Rf3+ {[%clk 0:01:07]} 33. Kd2 {[%clk 0:00:42]}  Rf2 {[%clk 0:01:04]} 34. Ke3 {[%clk 0:00:40]}  Raf8 {[%clk 0:01:04]} 35. Rg3 {[%clk 0:00:40]}  b5 {[%clk 0:00:59]} 36. Rxh5 {[%clk 0:00:39]}  Rxe2+ {[%clk 0:00:59]} 37. Kxe2 {[%clk 0:00:38]}  Nf4+ {[%clk 0:00:59]} 38. Ke1 {[%clk 0:00:34]}  Nxh5 {[%clk 0:01:00]} 39. Rc3 {[%clk 0:00:34]}  Rc8 {[%clk 0:00:59]} 40. b3 {[%clk 0:00:34]}  axb3 {[%clk 0:00:58]} 41. axb3 {[%clk 0:00:34]}  Nf4 {[%clk 0:00:59]} 42. Rf3 {[%clk 0:00:29]}  Ne6 {[%clk 0:00:59]} 0-1

[Event "December 19 Late 2023"]
[Site "https://www.chess.com"]
[Date "2023.12.19"]
[Round "1"]
[White "Solon, Nathan"]
[Black "Botez, Alexandra"]
[Result "1-0"]
[Board "97"]
[TimeControl "180+1"]
[WhiteFideId "2017229"]
[BlackFideId "2603365"]
[WhiteElo "2659"]
[BlackElo "2040"]
[WhiteTeam "USA"]
[BlackTeam "CAN"]
[WhiteClock "0:00:12"]
[BlackClock "0:00:15"]

1. d4 {[%clk 0:03:00]}  d5 {[%clk 0:02:55]} 2. Bf4 {[%clk 0:03:00]}  Nf6 {[%clk 0:02:53]} 3. e3 {[%clk 0:02:58]}  e6 {[%clk 0:02:54]} 4. Nf3 {[%clk 0:02:58]}  c5 {[%clk 0:02:53]} 5. Nbd2 {[%clk 0:02:57]}  Nc6 {[%clk 0:02:53]} 6. c3 {[%clk 0:02:57]}  Bd6 {[%clk 0:02:53]} 7. Bg3 {[%clk 0:02:57]}  O-O {[%clk 0:02:52]} 8. Bd3 {[%clk 0:02:57]}  c4 {[%clk 0:02:48]} 9. Bc2 {[%clk 0:02:56]}  b5 {[%clk 0:02:45]} 10. e4 {[%clk 0:02:56]}  dxe4 {[%clk 0:02:44]} 11. Nxe4 {[%clk 0:02:55]}  Nxe4 {[%clk 0:02:43]} 12. Bxe4 {[%clk 0:02:56]}  Bb7 {[%clk 0:02:44]} 13. O-O {[%clk 0:02:20]}  Bxg3 {[%clk 0:02:35]} 14. hxg3 {[%clk 0:02:20]}  Qc7 {[%clk 0:02:35]} 15. Qe2 {[%clk 0:02:14]}  Ne7 {[%clk 0:02:23]} 16. Rfe1 {[%clk 0:02:10]}  h6 {[%clk 0:02:17]} 17. g4 {[%clk 0:02:05]}  Bxe4 {[%clk 0:01:54]} 18. Qxe4 {[%clk 0:02:04]}  Qc6 {[%clk 0:01:36]} 19. Qf4 {[%clk 0:01:56]}  Nd5 {[%clk 0:01:33]} 20. Qg3 {[%clk 0:01:57]}  Qc7 {[%clk 0:01:21]} 21. Qh4 {[%clk 0:01:44]}  Qf4 {[%clk 0:01:13]} 22. Ne5 {[%clk 0:01:33]}  Rac8 {[%clk 0:00:55]} 23. Re2 {[%clk 0:01:06]}  a5 {[%clk 0:00:54]} 24. Rae1 {[%clk 0:01:03]}  b4 {[%clk 0:00:54]} 25. Qh3 {[%clk 0:00:59]}  bxc3 {[%clk 0:00:36]} 26. bxc3 {[%clk 0:01:00]}  Rc7 {[%clk 0:00:28]} 27. Rb2 {[%clk 0:00:45]}  Ra8 {[%clk 0:00:25]} 28. Reb1 {[%clk 0:00:42]}  f6 {[%clk 0:00:21]} 29. Rb8+ {[%clk 0:00:30]}  Rxb8 {[%clk 0:00:20]} 30. Rxb8+ {[%clk 0:00:30]}  Kh7 {[%clk 0:00:21]} 31. Rh8+ {[%clk 0:00:30]}  Kxh8 {[%clk 0:00:15]} 32. Ng6+ {[%clk 0:00:31]}  Kg8 {[%clk 0:00:15]} 33. Nxf4 {[%clk 0:00:32]}  Nxf4 {[%clk 0:00:16]} 34. Qe3 {[%clk 0:00:30]}  g5 {[%clk 0:00:11]} 35. g3 {[%clk 0:00:29]}  Nd3 {[%clk 0:00:07]} 36. Qxe6+ {[%clk 0:00:28]}  Kg7 {[%clk 0:00:08]} 37. d5 {[%clk 0:00:26]}  Ne5 {[%clk 0:00:07]} 38. f4 {[%clk 0:00:22]}  Nf7 {[%clk 0:00:03]} 39. Kf2 {[%clk 0:00:16]}  Rb7 {[%clk 0:00:03]} 40. Ke3 {[%clk 0:00:13]}  Rb1 {[%clk 0:00:03]} 41. Kd4 {[%clk 0:00:12]}  Rd1+ {[%clk 0:00:03]} 42. Kc5 {[%clk 0:00:12]}  Rd3 {[%clk 0:00:03]} 43. Kxc4 {[%clk 0:00:08]}  Rxg3 {[%clk 0:00:01]} 44. d6 {[%clk 0:00:08]}  Rf3 {[%clk 0:00:01]} 45. fxg5 {[%clk 0:00:05]}  Rf4+ {[%clk 0:00:02]} 46. Kc5 {[%clk 0:00:04]}  hxg5 {[%clk 0:00:03]} 47. d7 {[%clk 0:00:04]}  Rf3 {[%clk 0:00:04]} 48. Qe7 {[%clk 0:00:04]}  Rxc3+ {[%clk 0:00:04]} 49. Kb6 {[%clk 0:00:04]}  Rd3 {[%clk 0:00:04]} 50. Kxa5 {[%clk 0:00:04]}  Rd6 {[%clk 0:00:05]} 51. Qxd6 {[%clk 0:00:03]}  Nxd6 {[%clk 0:00:04]} 52. Kb6 {[%clk 0:00:03]}  Nf7 {[%clk 0:00:04]} 53. Kc7 {[%clk 0:00:04]}  f5 {[%clk 0:00:05]} 54. gxf5 {[%clk 0:00:03]}  Kf6 {[%clk 0:00:05]} 55. a4 {[%clk 0:00:03]}  g4 {[%clk 0:00:05]} 56. a5 {[%clk 0:00:04]}  g3 {[%clk 0:00:06]} 57. a6 {[%clk 0:00:05]}  g2 {[%clk 0:00:07]} 58. a7 {[%clk 0:00:06]}  g1=Q {[%clk 0:00:07]} 59. a8=Q {[%clk 0:00:06]}  Qc5+ {[%clk 0:00:08]} 60. Qc6+ {[%clk 0:00:07]}  Qxc6+ {[%clk 0:00:08]} 61. Kxc6 {[%clk 0:00:08]}  Nd8+ {[%clk 0:00:09]} 62. Kc7 {[%clk 0:00:08]}  Ke7 {[%clk 0:00:09]} 63. f6+ {[%clk 0:00:07]}  Kxf6 {[%clk 0:00:08]} 64. Kxd8 {[%clk 0:00:08]}  Kf7 {[%clk 0:00:08]} 65. Kc8 {[%clk 0:00:08]}  Kf8 {[%clk 0:00:09]} 66. d8=Q+ {[%clk 0:00:09]}  Kg7 {[%clk 0:00:09]} 67. Qd6 {[%clk 0:00:09]}  Kh7 {[%clk 0:00:10]} 68. Kc7 {[%clk 0:00:09]}  Kg7 {[%clk 0:00:11]} 69. Kc6 {[%clk 0:00:10]}  Kh8 {[%clk 0:00:12]} 70. Kd5 {[%clk 0:00:11]}  Kh7 {[%clk 0:00:13]} 71. Ke5 {[%clk 0:00:12]}  Kh8 {[%clk 0:00:14]} 72. Kf6 {[%clk 0:00:12]}  Kh7 {[%clk 0:00:14]} 73. Qd7+ {[%clk 0:00:12]}  Kh8 {[%clk 0:00:15]} 1-0

[Event "December 19 Late 2023"]
[Site "https://www.chess.com"]
[Date "2023.12.19"]
[Round "1"]
[White "Nasta, Kiren Vivek"]
[Black "Sturt, Raven"]
[Result "0-1"]
[Board "100"]
[TimeControl "180+1"]
[WhiteFideId "30943612"]
[BlackFideId "2007304"]
[WhiteElo "1966"]
[BlackElo "2408"]
[WhiteTeam "USA"]
[BlackTeam "USA"]
[WhiteClock "0:02:18"]
[BlackClock "0:00:46"]

1. e4 {[%clk 0:03:00]}  e5 {[%clk 0:01:21]} 2. Nf3 {[%clk 0:02:59]}  Nc6 {[%clk 0:01:21]} 3. Bb5 {[%clk 0:03:00]}  f5 {[%clk 0:01:20]} 4. Nc3 {[%clk 0:03:00]}  fxe4 {[%clk 0:01:20]} 5. Nxe4 {[%clk 0:03:00]}  Nf6 {[%clk 0:01:20]} 6. Nxf6+ {[%clk 0:03:00]}  Qxf6 {[%clk 0:01:19]} 7. Qe2 {[%clk 0:03:01]}  Be7 {[%clk 0:01:20]} 8. Bxc6 {[%clk 0:03:01]}  bxc6 {[%clk 0:01:15]} 9. Nxe5 {[%clk 0:02:58]}  O-O {[%clk 0:01:07]} 10. O-O {[%clk 0:02:56]}  Bc5 {[%clk 0:01:07]} 11. c3 {[%clk 0:02:56]}  Ba6 {[%clk 0:00:54]} 12. c4 {[%clk 0:02:42]}  Rae8 {[%clk 0:00:52]} 13. Re1 {[%clk 0:02:18]}  Bxf2+ {[%clk 0:00:46]} 0-1